Cogmind - Beta 9.6 @@@ ROGUE MODE // 2020.06.24 @ 21:33:34 Player: Vectis Result: Destroyed by L-41 Fighter with Axe Performance ------------- Evolutions (4) 2000 Regions Visited (11) 2200 Robots Destroyed (165) 825 Value Destroyed (5717) 5717 Prototype IDs (5) 100 Alien Tech Used (0) 0 Bonus (66) 66 TOTAL SCORE: 10908 Bonus ------- High Alert Combat Kills 182 Follower Combat Kills 355 Entered Garrisons 200 Used RIF Installer 500 Friendly Fire -1171 Cogmind --------- Core Integrity 0/850 Matter 264/300 Energy 100/100 System Corruption 1% Temperature Cool (0) Movement Rolling (140) Ox4 Location -6/Factory Parts ------- > --- POWER (1) -------- (None) > --- PROPULSION (2) --- Armored Huge Wheel > --- UTILITY (10) ----- Large Storage Unit Large Storage Unit High-capacity Storage Unit High-capacity Storage Unit High-capacity Storage Unit Advanced Signal Interpreter Hacking Suite System Shield > --- WEAPON (2) ------- Rocket Launcher > --- INVENTORY (40) --- Improved Deuterium Engine Light Angular Momentum Engine Compact Wheel Armored Wheel Armored Wheel Armored Wheel Armored Wheel Combat Airjet Combat Airjet Large Storage Unit Large Storage Unit High-capacity Storage Unit High-capacity Storage Unit High-capacity Storage Unit Advanced Sensor Array Target Analyzer Relay Coupler [NC] (26) Relay Coupler [NC] (24) Relay Coupler [NC] (23) Relay Coupler [NC] (29) Relay Coupler [NC] (29) Relay Coupler [NC] (28) Relay Coupler [Swarmer] (36) Relay Coupler [Swarmer] (40) Relay Coupler [Swarmer] (40) Relay Coupler [Brawler] (27) Relay Coupler [Duelist] (25) Relay Coupler [Duelist] (26) Relay Coupler [Sentry] (18) Relay Coupler [Demolisher] (18) Plasma Rifle Improved Assault Rifle Gauss Rifle Gauss Rifle Remote Datajack Plasma Cutter Plasma Cutter Peak State ------------ > --- POWER ------------ Light Deuterium Engine > --- PROPULSION ------- Combat Airjet Combat Airjet > --- UTILITY ---------- Medium Storage Unit Large Storage Unit Large Storage Unit Large Storage Unit Hacking Suite Hacking Suite Hacking Suite System Shield System Shield System Shield > --- WEAPON ----------- Gauss Rifle Gauss Rifle > --- INVENTORY -------- Combat Airjet Advanced Sensor Array Advanced Signal Interpreter Relay Coupler [NC] Relay Coupler [NC] Relay Coupler [NC] Relay Coupler [NC] Relay Coupler [NC] Relay Coupler [NC] Relay Coupler [Swarmer] Relay Coupler [Swarmer] Relay Coupler [Swarmer] Relay Coupler [Brawler] Relay Coupler [Duelist] Relay Coupler [Duelist] Relay Coupler [Sentry] Relay Coupler [Sentry] Relay Coupler [Demolisher] Datajack Plasma Cutter Axe [Rating: 48] Favorites ----------- Power Improved Ion Engine Engine Improved Ion Engine Propulsion Light Treads Treads Light Treads Wheel Armored Wheel Hover Unit Combat Airjet Utility Large Storage Unit Device Improved Heat Sink Storage Large Storage Unit Processor Advanced Visual Processing Unit Hackware Hacking Suite Protection Light Armor Plating Weapon Improved Assault Rifle Energy Gun Improved Medium Laser Ballistic Gun Improved Assault Rifle Ballistic Cannon Flak Cannon Launcher EMP Blaster Special Weapon Plasma Cutter Slashing Weapon Axe Special Melee Weapon Datajack Build | -11 -10 -10 -9 -9 -9 -8 -8 -8 -8 -8 -6 ------- Run | Scr Mat Min Mat Min Exi Min Mat Sto Gar Rec Fac Slots Evolved 8 | . . . 2 . . . 2 . . . 4 Power . | . . . . . . . . . . . . Propulsion . | . . . . . . . . . . . . Utility 8 | . . . 2 . . . 2 . . . 4 Weapon . | . . . . . . . . . . . . Parts Attached 170 | 7 11 5 31 8 2 . 4 13 45 . 44 Power 11 | 1 . 1 3 1 . . . 2 2 . 1 Engine 11 | 1 . 1 3 1 . . . 2 2 . 1 Core . | . . . . . . . . . . . . Reactor . | . . . . . . . . . . . . Propulsion 29 | 2 3 . 5 3 . . . 4 6 . 6 Treads 19 | 2 3 . 5 3 . . . 4 2 . . Leg . | . . . . . . . . . . . . Wheel 6 | . . . . . . . . . 3 . 3 Hover 4 | . . . . . . . . . 1 . 3 Flight . | . . . . . . . . . . . . Utility 42 | 2 3 . 3 1 2 . 2 2 10 . 17 Device 3 | . . . . . . . . . 1 . 2 Storage 21 | 2 3 . 2 1 2 . . . 5 . 6 Processor 2 | . . . . . . . 1 . . . 1 Hackware 7 | . . . . . . . . . . . 7 Protection 9 | . . . 1 . . . 1 2 4 . 1 Artifact . | . . . . . . . . . . . . Weapon 88 | 2 5 4 20 3 . . 2 5 27 . 20 Energy Gun 12 | . 1 . 6 . . . . 1 . . 4 Energy Cannon . | . . . . . . . . . . . . Ballistic Gun 41 | 2 4 3 2 2 . . 1 3 14 . 10 Ballistic Cannon 9 | . . . 9 . . . . . . . . Launcher 16 | . . 1 1 1 . . . . 9 . 4 Special Weapon 2 | . . . . . . . . . 2 . . Impact Weapon . | . . . . . . . . . . . . Slashing Weapon 7 | . . . 2 . . . 1 1 2 . 1 Piercing Weapon . | . . . . . . . . . . . . Special Melee Weapon 1 | . . . . . . . . . . . 1 Unidentified Prototypes 5 | . . . 3 . . . . 2 . . . Parts Lost 30 | . 1 1 4 . . . . 1 2 . 21 Power 3 | . . . 1 . . . . . . . 2 Propulsion 4 | . . . 1 . . . . . . . 3 Utility 10 | . . . 1 . . . . 1 2 . 6 Weapon 13 | . 1 1 1 . . . . . . . 10 Highest Loss Streak 5 | . 1 1 3 . . . . 1 1 . 5 Average Slot Usage (%) 95 | . 99 99 97 100 100 100 93 100 87 100 93 Engine 9 | . 14 14 10 11 11 11 9 9 9 9 5 Treads 17 | . 27 28 21 22 22 22 18 18 12 . . Wheel 2 | . . . . . . . . . 5 18 5 Device 1 | . . . . . . . . . 4 . 1 Storage 32 | . 28 28 38 44 44 44 36 36 22 54 28 Processor 3 | . . . . . . . 7 9 6 . 5 Hackware 2 | . . . . . . . . . . . 28 Protection 4 | . . . 3 . . . 3 9 10 . . Energy Gun 1 | . . . 6 1 . . . . . . 3 Ballistic Gun 14 | . 27 27 5 20 22 22 16 17 11 18 6 Ballistic Cannon 1 | . . . 9 . . . . . . . . Naked Turns . | . . . . . . . . . . . . Heaviest Build 157 | 14 38 38 94 94 109 109 112 116 155 155 157 Greatest Support 44 | 40 40 40 43 40 40 40 40 40 40 24 44 Greatest Overweight (x) 6 | . 1 . 2 2 2 2 2 2 6 6 6 Average Overweight (x) 1 | . . . 1 2 2 2 2 2 1 6 2 Largest Inventory Capacity 46 | 8 16 16 30 30 32 32 32 32 46 46 46 Average Capacity 25 | 6 13 16 27 30 30 32 32 32 21 46 31 Most Carried 46 | 4 16 16 30 30 31 31 32 32 46 46 46 Average Carried 23 | 2 12 15 25 29 30 31 31 31 18 45 25 Final Capacity 46 | 8 16 16 30 30 32 32 32 32 46 46 40 Final Carried 46 | 4 16 16 30 30 31 31 32 32 46 46 37 Class Distribution -------------------- 58% | Hauler-Mutant 23% | Scavenger-Mutant 10% | Mutant 3% | Bothacker-Mutant Dominant Class ---------------- Mutant | -10/Materials Scavenger-Mutant | -10/Mines Hauler-Mutant | -9/Materials Hauler-Mutant | -9/Mines Hauler-Mutant | -9/Exiles Hauler-Mutant | -8/Mines Hauler-Mutant | -8/Materials Hauler-Mutant | -8/Storage Scavenger-Mutant | -8/Garrison Hauler-Mutant | -8/Recycling Bothacker-Mutant | -6/Factory Resources | -11 -10 -10 -9 -9 -9 -8 -8 -8 -8 -8 -6 ----------- Run | Scr Mat Min Mat Min Exi Min Mat Sto Gar Rec Fac Matter Collected 4534 | 286 347 131 959 313 . 38 17 619 996 11 817 Remotely . | . . . . . . . . . . . . Salvage Created 7059 | 52 678 397 1248 500 . . . 1107 1791 34 1252 Parts 375 | 3 35 27 71 30 . . . 58 98 5 48 Haulers Intercepted 9 | . 2 . 3 . . . . 4 . . . Recyclers Shooed 13 | . 6 . 1 . . . . 1 . 3 2 Parts Field Recycled . | . . . . . . . . . . . . Retrieved Matter . | . . . . . . . . . . . . Parts Self-Destructed . | . . . . . . . . . . . . Prevented . | . . . . . . . . . . . . Kills | -11 -10 -10 -9 -9 -9 -8 -8 -8 -8 -8 -6 ------- Run | Scr Mat Min Mat Min Exi Min Mat Sto Gar Rec Fac Combat Hostiles Destroyed 124 | . 10 12 25 11 . . . 17 29 3 17 Melee 3 | . . . 1 . . . . . . . 2 Guns 83 | . 10 10 11 8 . . . 17 15 3 9 Cannons 11 | . . . 11 . . . . . . . . AOE 24 | . . 2 2 3 . . . . 13 . 4 Classes Destroyed 18 | 1 6 2 3 1 . . . 1 1 1 2 Worker 10 | . 1 1 4 1 . . . . . . 3 Builder 1 | . . . 1 . . . . . . . . Tunneler 2 | . . 1 . 1 . . . . . . . Hauler 9 | . 2 . 3 . . . . 4 . . . Recycler 9 | 1 3 1 2 . . . . . . . 2 Mechanic 1 | . . . . . . . . . . . 1 Operator 6 | . 1 . 3 . . . . 2 . . . Drone 3 | . . . . . . . . . . 3 . Watcher 2 | . 1 . 1 . . . . . . . . Swarmer 21 | . 5 6 . 3 . . . . 7 . . Grunt 68 | . 5 4 19 6 . . . 9 16 . 9 Brawler 2 | . . . . 2 . . . . . . . Duelist 2 | . . . 1 . . . . . . . 1 Sentry 17 | . . . 5 . . . . 6 5 . 1 Specialist 1 | . . . . . . . . . 1 . . Hunter 6 | . . . . . . . . 2 . . 4 Programmer 2 | . . . . . . . . . . . 2 Assembled 2 | . . 2 . . . . . . . . . Best Kill Streak 10 | 1 3 10 6 4 . . . 4 7 2 4 Combat Bots Only 9 | . 3 9 5 3 . . . 4 7 2 4 Max Kills in Single Turn 4 | 1 2 2 2 2 . . . 2 4 1 1 Gunslinging 1 | . . 1 . . . . . . 1 . . Exploded 4 | . . 2 2 2 . . . . 4 . 1 Melee 1 | . . . 1 . . . . . . . 1 Uniques/NPCs Destroyed 1 | . . . . 1 . . . . . . . YI-UF0 (-9/Mines) Combat | -11 -10 -10 -9 -9 -9 -8 -8 -8 -8 -8 -6 -------- Run | Scr Mat Min Mat Min Exi Min Mat Sto Gar Rec Fac Damage Taken 7452 | . 566 505 1012 355 . . . 709 884 . 3421 Core 1347 | . 63 99 117 72 . . . 46 77 . 873 Absorbed by Shields . | . . . . . . . . . . . . Core Remaining (%) 66 | 100 . 35 . . . 52 . . . 77 . Volleys Fired 561 | 4 75 43 92 42 . 3 . 73 141 13 75 Largest 2 | 2 2 2 2 2 . 2 . 2 2 2 2 Hottest 149 | 40 60 40 88 86 . 46 . 48 58 46 149 Shots Fired 1007 | 8 145 84 180 84 . 6 . 145 191 26 138 Gun 842 | 8 145 82 107 82 . 6 . 145 111 26 130 Cannon 69 | . . . 69 . . . . . . . . Launcher 44 | . . 2 4 2 . . . . 28 . 8 Special 52 | . . . . . . . . . 52 . . Kinetic 794 | 8 140 82 119 69 . 6 . 145 111 26 88 Thermal 158 | . . . 51 13 . . . . 52 . 42 Explosive 16 | . . 2 4 2 . . . . . . 8 Electromagnetic 39 | . 5 . 6 . . . . . 28 . . Robot Hit Streak 27 | 4 8 10 17 17 . 4 . 16 27 3 14 Robot Miss Streak 9 | 1 3 2 7 2 . 1 . 3 4 9 4 Penetration Max 1 | . . . . . . . . . . . 1 Secondary Targets 7 | . 2 2 . . . . . 1 1 . 1 Max Gunslinging Chain 1 | . 1 1 . . . . . 1 1 . 1 Shots Hit Robots 720 | 6 96 58 142 61 . 5 . 114 127 6 105 Core Hits 338 | 2 32 27 71 23 . 1 . 45 76 4 57 Critical Hits 5 | . . . . . . . . . 4 . 1 Critical Kills 2 | . . . . . . . . . 2 . . Critical Parts Destroyed 3 | . . . . . . . . . 2 . 1 Melee Attacks 41 | . . . 4 . . . 1 1 2 . 33 Impact . | . . . . . . . . . . . . Slashing 40 | . . . 4 . . . 1 1 2 . 32 Piercing . | . . . . . . . . . . . . Sneak Attacks 7 | . . . 3 . . . . . . . 4 Combat Hostiles 1 | . . . . . . . . . . . 1 Follow-up Attacks . | . . . . . . . . . . . . Damage Inflicted 13811 | 71 1079 597 2761 1136 . 76 . 1782 2947 115 3247 Guns 8769 | 71 1038 487 1174 1012 . 76 . 1782 1310 115 1704 Cannons 752 | . . . 752 . . . . . . . . Explosions 2601 | . 41 110 457 124 . . . . 1136 . 733 Melee 1174 | . . . 364 . . . . . . . 810 Ramming 14 | . . . 14 . . . . . . . . Kinetic 8081 | 71 992 487 1236 825 . 76 . 1782 1310 115 1187 Thermal 1985 | . 41 . 609 187 . . . . 631 . 517 Explosive 1424 | . . 110 457 124 . . . . . . 733 Electromagnetic 1133 | . 46 . 81 . . . . . 1006 . . Impact . | . . . . . . . . . . . . Slashing 1174 | . . . 364 . . . . . . . 810 Piercing . | . . . . . . . . . . . . Highest Corruption 3 | . . 1 . . . . . 3 3 3 1 Average Corruption 2 | . . 1 . . . . . 2 3 3 1 Corruption Purged . | . . . . . . . . . . . . Effects 94 | . . 3 . . . . . 19 65 6 1 Message Errors 20 | . . 2 . . . . . 3 15 . . Matter Fused 25 | . . . . . . . . 4 17 4 . Heat Flow Errors 11 | . . . . . . . . 2 8 1 . Energy Discharges 10 | . . . . . . . . 3 6 1 . Data Loss (minor) 14 | . . . . . . . . 3 10 . 1 Targeting Errors 11 | . . 1 . . . . . 3 7 . . Weapon Failures 3 | . . . . . . . . 1 2 . . Overload Shots . | . . . . . . . . . . . . Overflow Damage 310 | . . . 132 . . . . . . . 178 Projectiles . | . . . . . . . . . . . . Explosions 7 | . . . . . . . . . . . 7 Melee 303 | . . . 132 . . . . . . . 171 Knockbacks 23 | . . . 23 . . . . . . . . Impact . | . . . . . . . . . . . . Kinetic 23 | . . . 23 . . . . . . . . Secondary . | . . . . . . . . . . . . Self-Inflicted Damage 251 | . . 33 62 31 . . . . 13 . 112 Shots 7 | . . 1 1 1 . . . . 1 . 3 Rammed 1 | . . . 1 . . . . . . . . Targets Rammed 1 | . . . 1 . . . . . . . . Kicked . | . . . . . . . . . . . . Crushed . | . . . . . . . . . . . . Highest Temperature 277 | . 20 20 222 21 . . . 265 277 160 209 Average Temperature 40 | . 8 8 40 9 . . . 26 87 85 60 Received Heat Transfer 2158 | . 204 166 435 87 . . . 243 387 . 636 Effects 1 | . . . . . . . . . 1 . . Energy Bleed 1 | . . . . . . . . . 1 . . Siege Activations . | . . . . . . . . . . . . Robots Corrupted 1 | . . . . . . . . . 1 . . Combat Hostiles 1 | . . . . . . . . . 1 . . Parts Fried 4 | . . . 1 . . . . . 2 . 1 Impact Corruptions . | . . . . . . . . . . . . Robots Melted 1 | . . . . . . . . . . . 1 Combat Hostiles 1 | . . . . . . . . . . . 1 Parts Melted 4 | . . . 2 . . . . . . . 2 Heat Transferred 4603 | . . . 1332 407 . . . . 1902 . 962 Parts Sabotaged . | . . . . . . . . . . . . Parts Stolen . | . . . . . . . . . . . . Parts Stripped . | . . . . . . . . . . . . Power Chain Reactions 6 | . 1 . . . . . . . 5 . . Missiles Intercepted . | . . . . . . . . . . . . Alert | -11 -10 -10 -9 -9 -9 -8 -8 -8 -8 -8 -6 ------- Run | Scr Mat Min Mat Min Exi Min Mat Sto Gar Rec Fac Peak Influence 1012 | 5 242 160 418 286 . 88 122 466 837 381 1012 Average Influence 318 | 2 82 64 184 91 . 72 55 236 610 275 474 Maximum Alert Level 3 | . 1 . 2 1 . . . 2 3 1 3 Low Security (%) 46 | 100 86 100 64 85 . 100 100 25 13 . 14 Level 1 25 | . 13 . 29 14 . . . 70 9 100 47 Level 2 9 | . . . 6 . . . . 3 25 . 6 Level 3 18 | . . . . . . . . . 51 . 30 Level 4 . | . . . . . . . . . . . . Level 5 . | . . . . . . . . . . . . High Security . | . . . . . . . . . . . . Max Security . | . . . . . . . . . . . . Squads Dispatched 21 | . 1 . 6 . . . . 8 . . 6 Investigation 4 | . 1 . 1 . . . . 2 . . . Extermination 2 | . . . . . . . . . . . 2 Reinforcement 10 | . . . 5 . . . . 3 . . 2 Assault 2 | . . . . . . . . . . . 2 Garrison 3 | . . . . . . . . 3 . . . Intercept . | . . . . . . . . . . . . Construction Impeded 2 | . . . . . . . . . . . 2 Haulers Reinforced . | . . . . . . . . . . . . Stealth | -11 -10 -10 -9 -9 -9 -8 -8 -8 -8 -8 -6 --------- Run | Scr Mat Min Mat Min Exi Min Mat Sto Gar Rec Fac Distress Signals 7 | . . . 3 . . . . 4 . . . Communications Jammed . | . . . . . . . . . . . . Distress Signals . | . . . . . . . . . . . . Times Spotted 255 | . 27 13 57 16 . . 2 38 51 13 38 Peak Tracking Total 10 | . 5 3 5 3 . . 1 5 5 5 10 Tactical Retreats 35 | . . 1 6 2 . . . 4 20 . 2 Traps | -11 -10 -10 -9 -9 -9 -8 -8 -8 -8 -8 -6 ------- Run | Scr Mat Min Mat Min Exi Min Mat Sto Gar Rec Fac Traps Triggered 10 | . . . . . . . . 3 7 . . Indirectly 3 | . . . . . . . . . 3 . . Trap Hack Attempts . | . . . . . . . . . . . . Triggered . | . . . . . . . . . . . . Disarmed 6 | . . . 6 . . . . . . . . Reprogrammed . | . . . . . . . . . . . . Reused . | . . . . . . . . . . . . Traps Extracted . | . . . . . . . . . . . . Installed . | . . . . . . . . . . . . Triggered 3 | . . . . . . . . . 3 . . Machines | -11 -10 -10 -9 -9 -9 -8 -8 -8 -8 -8 -6 ---------- Run | Scr Mat Min Mat Min Exi Min Mat Sto Gar Rec Fac Machines Disabled 12 | . . 1 1 . . . 1 2 4 . 3 Max in Single Turn 1 | . . 1 1 . . . . 1 1 . 1 Garrison Access 1 | . . . . . . . . . . . 1 Garrison Relay 4 | . . . . . . . . . 4 . . Machines Sabotaged . | . . . . . . . . . . . . Garrisons Compromised . | . . . . . . . . . . . . Overloaded Fab Kills . | . . . . . . . . . . . . Fab Network Shutdowns . | . . . . . . . . . . . . Hacking | -11 -10 -10 -9 -9 -9 -8 -8 -8 -8 -8 -6 --------- Run | Scr Mat Min Mat Min Exi Min Mat Sto Gar Rec Fac Machines Accessed 33 | . 6 1 7 . 1 . 1 7 . 3 7 Terminals 22 | . 5 . 5 . . . 1 6 . 2 3 Fabricators 1 | . . . . . . . . . . . 1 Repair Stations 2 | . 1 . 1 . . . . . . . . Recycling Units 4 | . . . 1 . . . . . . 1 2 Scanalyzers . | . . . . . . . . . . . . Garrison Access 2 | . . . . . . . . 1 . . 1 Total Hacks 104 | . 22 1 21 . 1 . 6 15 . 10 28 Successful 62 | . 11 1 12 . 1 . 4 8 . 5 20 Failed 40 | . 10 . 8 . . . 2 7 . 5 8 Catastrophic 10 | . 2 . 1 . . . . 4 . 2 1 Database Lockouts 2 | . 1 . 1 . . . . . . . . Manual 70 | . 15 . 10 . . . 6 8 . 7 24 Terminals 80 | . 18 . 16 . . . 6 14 . 5 21 Fabricators 2 | . . . . . . . . . . . 2 Repair Stations 7 | . 4 . 3 . . . . . . . . Recycling Units 11 | . . . 2 . . . . . . 5 4 Scanalyzers . | . . . . . . . . . . . . Garrison Access 2 | . . . . . . . . 1 . . 1 Terminal Hacks 27 | . 3 1 5 . 1 . 1 4 . 1 11 Record 1 | . . . . . 1 . . . . . . Robot Schematic 1 | . . . . . . . . . . . 1 Robot Analysis 2 | . 1 . 1 . . . . . . . . Open Door 2 | . . 1 . . . . . 1 . . . Branch Access Points 2 | . . . . . . . 1 . . . 1 Emergency Access Points 1 | . . . 1 . . . . . . . . Terminal Index 1 | . . . . . . . . . . . 1 Fabricator Index 1 | . . . . . . . . . . . 1 Unreport Threat 9 | . 1 . . . . . . 2 . 1 5 Locate Traps 3 | . 1 . 1 . . . . 1 . . . Disarm Traps 1 | . . . 1 . . . . . . . . Patrol Status 1 | . . . 1 . . . . . . . . Recall Assault 1 | . . . . . . . . . . . 1 Zone Layout 1 | . . . . . . . . . . . 1 Fabricator Hacks 1 | . . . . . . . . . . . 1 Load Schematic 1 | . . . . . . . . . . . 1 Repair Station Hacks 5 | . 4 . 1 . . . . . . . . Scan Component 3 | . 2 . 1 . . . . . . . . Repair 2 | . 2 . . . . . . . . . . Recycling Unit Hacks 4 | . . . 1 . . . . . . 2 1 Retrieve Matter 2 | . . . . . . . . . . 1 1 Retrieve Components 2 | . . . 1 . . . . . . 1 . Scanalyzer . | . . . . . . . . . . . . Garrison Access Hacks 2 | . . . . . . . . 1 . . 1 Unlock Access 1 | . . . . . . . . 1 . . . Seal Access 1 | . . . . . . . . . . . 1 Unauthorized Hacks 23 | . 4 . 5 . . . 3 3 . 2 6 Terminals 19 | . 4 . 5 . . . 3 3 . 1 3 Track 7 | . 1 . 5 . . . 1 . . . . Assimilate 1 | . 1 . . . . . . . . . . Botnet 6 | . . . . . . . 1 2 . 1 2 Disrupt 2 | . 1 . . . . . . 1 . . . Operators 3 | . 1 . . . . . 1 . . . 1 Fabricators 1 | . . . . . . . . . . . 1 Siphon 1 | . . . . . . . . . . . 1 Repair Stations . | . . . . . . . . . . . . Recycling Units 3 | . . . . . . . . . . 1 2 Recyclers 1 | . . . . . . . . . . 1 . Mask 2 | . . . . . . . . . . . 2 Scanalyzers . | . . . . . . . . . . . . Garrison Access . | . . . . . . . . . . . . Data Cores Recovered 1 | . . . . . . . 1 . . . . Used 1 | . . . . . . . 1 . . . . Hacking Detections 22 | . 5 . 5 . . . 1 6 . 2 3 Full Trace Events 1 | . . . . . . . . 1 . . . Feedback Events . | . . . . . . . . . . . . Feedback Blocked . | . . . . . . . . . . . . Robot Schematics Acquired 1 | . . . . . . . . . . . 1 Robots Built . | . . . . . . . . . . . . Matter . | . . . . . . . . . . . . Time . | . . . . . . . . . . . . Total Robot Build Rating . | . . . . . . . . . . . . Part Schematics Acquired . | . . . . . . . . . . . . Parts Built . | . . . . . . . . . . . . Matter . | . . . . . . . . . . . . Time . | . . . . . . . . . . . . Total Part Build Rating . | . . . . . . . . . . . . Parts Repaired 2 | . 2 . . . . . . . . . . Time 52 | . 52 . . . . . . . . . . Parts Recycled . | . . . . . . . . . . . . Recycled Matter . | . . . . . . . . . . . . Retrieved Matter . | . . . . . . . . . . . . Retrieved Components 10 | . . . 9 . . . . . . 1 . Parts Scanalyzed . | . . . . . . . . . . . . Part Schematics Acquired . | . . . . . . . . . . . . Parts Damaged . | . . . . . . . . . . . . Bothacking | -11 -10 -10 -9 -9 -9 -8 -8 -8 -8 -8 -6 ------------ Run | Scr Mat Min Mat Min Exi Min Mat Sto Gar Rec Fac Used RIF Installer 1 | . . . . . . . . . 1 . . Robots Hacked 1 | . . . . . . . . . . . 1 Non-combat . | . . . . . . . . . . . . Combat 1 | . . . . . . . . . . . 1 Robot Hacks Applied 1 | . . . . . . . . . . . 1 find_garrison 1 | . . . . . . . . . . . 1 Relay Couplers Released 19 | . . . . . . . . . 19 . . Machine Destruction 19 | . . . . . . . . . 19 . . Attached 1 | . . . . . . . . . . . 1 Robots Rewired 2 | . . . . . 2 . . . . . . Allies Hacked . | . . . . . . . . . . . . Hacks Repelled . | . . . . . . . . . . . . Allies | -11 -10 -10 -9 -9 -9 -8 -8 -8 -8 -8 -6 -------- Run | Scr Mat Min Mat Min Exi Min Mat Sto Gar Rec Fac Total Allies 6 | . 1 . . 3 2 . . . . . . Largest Group 5 | . 1 . . 3 5 5 5 5 . . . Highest-Rated Group 56 | . 10 . . 40 56 56 56 56 . . . Highest-Rated Ally 16 | . 10 . . 16 16 16 16 16 . . . Total Orders 21 | . 3 . . 10 . . . 8 . . . STAY 7 | . 2 . . 5 . . . . . . . ROAM 1 | . . . . 1 . . . . . . . FOLLOW 5 | . 1 . . 4 . . . . . . . EXPLORE 8 | . . . . . . . . 8 . . . Ally Attacks 89 | . . . . 6 . 6 11 66 . . . Total Damage 997 | . . . . 52 . 75 120 750 . . . Kills 14 | . . . . 1 . 3 2 8 . . . Allies Corrupted . | . . . . . . . . . . . . Allies Melted . | . . . . . . . . . . . . Intel | -11 -10 -10 -9 -9 -9 -8 -8 -8 -8 -8 -6 ------- Run | Scr Mat Min Mat Min Exi Min Mat Sto Gar Rec Fac Robot Analysis Total 2 | . 1 . 1 . . . . . . . . Derelict Logs Recovered 5 | . . 3 . 2 . . . . . . . Drone Launches 16 | . . . . . . . . 16 . . . Drone Recoveries . | . . . . . . . . . . . . Exploration | -11 -10 -10 -9 -9 -9 -8 -8 -8 -8 -8 -6 ------------- Run | Scr Mat Min Mat Min Exi Min Mat Sto Gar Rec Fac Turns Passed 13749 | 109 1225 588 2432 1626 919 56 162 1234 3946 302 1150 Spaces Moved 6451 | 54 561 242 973 721 436 18 73 437 2131 172 633 Core 3 | 3 . . . . . . . . . . . Treads 4844 | 51 561 242 973 721 436 18 73 437 1332 . . Legs . | . . . . . . . . . . . . Wheels 1283 | . . . . . . . . . 799 172 312 Hover 321 | . . . . . . . . . . . 321 Flight . | . . . . . . . . . . . . Fastest Speed 50 | 50 160 160 180 200 200 200 200 200 100 150 76 Average Speed 169 | 153 160 160 196 200 200 200 200 200 154 150 112 Slowest Speed 200 | 160 180 160 200 200 200 200 200 200 200 150 150 Overloaded Moves . | . . . . . . . . . . . . Propulsion Burnouts . | . . . . . . . . . . . . Robots Hopped . | . . . . . . . . . . . . Cave-ins Triggered . | . . . . . . . . . . . . Exploration Rate (%) 50 | 5 75 56 51 91 89 6 13 92 74 47 12 Regions Visited 11 Branch Regions 6 Pre-discovered Areas 6 | . . 3 . 2 1 . . . . . . Known Exits Taken 2 | . . . . . . . 1 1 . . . Unknown Exits Taken 8 | 1 1 1 1 1 1 1 . . . 1 . Scrap Searched 2 | . . . . 2 . . . . . . . Spaces Dug 37 | . . . 12 . . . 1 1 . . 23 Terrain Destroyed 137 | . 5 6 31 13 . . 1 1 17 . 63 Melee 13 | . . . . . . . 1 1 . . 11 Projectile . | . . . . . . . . . . . . AOE 124 | . 5 6 31 13 . . . . 17 . 52 Actions | -11 -10 -10 -9 -9 -9 -8 -8 -8 -8 -8 -6 --------- Run | Scr Mat Min Mat Min Exi Min Mat Sto Gar Rec Fac Total 8267 | 69 768 372 1302 824 486 33 88 676 2571 192 886 Wait 627 | 1 82 81 167 40 4 13 6 115 92 . 26 Move 6441 | 53 560 241 972 720 435 17 72 437 2130 171 633 Hop . | . . . . . . . . . . . . Pick Up 174 | 4 24 1 21 5 2 . 3 10 65 4 35 Fast Attach 48 | 7 1 . 8 1 . . 2 3 12 . 14 Attach 30 | . 1 2 5 1 . . . 2 1 . 18 Detach 4 | . . . 1 . . . . 2 . . 1 Swap 92 | . 9 3 18 6 2 . 2 8 32 . 12 Drop 167 | . 16 1 13 9 3 . 2 17 63 4 39 Fire 561 | 4 75 43 92 42 . 3 . 73 141 13 75 Melee 41 | . . . 4 . . . 1 1 2 . 33 Ram . | . . . . . . . . . . . . Kick . | . . . . . . . . . . . . Crush 1 | . . . 1 . . . . . . . . Escape Stasis 32 | . . . . . . . . . 32 . . Rewire 41 | . . . . . 40 . . . 1 . . Trap . | . . . . . . . . . . . . Miscellaneous 8 | . . . . . . . . 8 . . . Route ------- -11/Scrapyard -10/Materials (discovered 2 exits: *Mat / *Min) -10/Mines -9/Materials (discovered 2 exits: *Mat / [*Min]) -9/Mines (discovered 3 exits: *Mat x2 / *Exi) -9/Exiles -8/Mines -8/Materials -8/Storage (discovered 3 exits: [*Fac] / Rec / Gar) -8/Garrison (discovered 3 exits: *Rec x3) -8/Recycling -6/Factory (discovered 2 exits: Low x2) History --------- Turn | Location | Event 8 | -11/Scrapyard | Discovered new exit (range 16) 110 | -11/Scrapyard | Entered Materials 318 | -10/Materials | Build established: Mutant 385 | -10/Materials | Discovered new exit (range 14) 589 | -10/Materials | Central database locked down 894 | -10/Materials | Discovered new exit (range 16) 1212 | -10/Materials | Repaired EM Pulse Gun 1239 | -10/Materials | Repaired Lgt. Treads 1335 | -10/Materials | Entered Mines 1386 | -10/Mines | Met a Derelict who couldn't figure out how to use a Trap Extractor 1435 | -10/Mines | Learned location of Mines (-8) 1541 | -10/Mines | Build established: Scavenger-Mutant 1649 | -10/Mines | Learned location of Zion (-6) 1676 | -10/Mines | Learned location of Recycling (-8) 1693 | -10/Mines | Excavation squad dispatched 1693 | -10/Mines | A large section of the Mines collapsed 1838 | -10/Mines | Core integrity fell below 50% 1887 | -10/Mines | Destroyed 9 combat bots 1915 | -10/Mines | Discovered new exit (range 5) 1923 | -10/Mines | Entered Materials 1923 | -9/Materials | Evolved 2 slots: Utility x2 2220 | -9/Materials | Build established: Hauler-Mutant 2669 | -9/Materials | Discovered new exit (range 14) 2757 | -9/Materials | Central database locked down 2911 | -9/Materials | Discovered new exit (range 5) 3011 | -9/Materials | Lost 3 parts (1p1u1w) 4355 | -9/Materials | Entered Mines 4474 | -9/Mines | Assisted by bots powering up and referring to "LRC-V3" 4495 | -9/Mines | Destroyed YI-UF0 4617 | -9/Mines | Discovered new exit (range 12) 4871 | -9/Mines | Joined a pair of Derelicts in attacking an 0b10 outpost 4988 | -9/Mines | Assisted by bots powering up and referring to "LRC-V3" 5275 | -9/Mines | Discovered new exit (range 5) 5278 | -9/Mines | Learned location of Storage (-8) 5850 | -9/Mines | Deemed a non-threat by the Exiles lab entrance 5967 | -9/Mines | Discovered new exit (range 5) 5981 | -9/Mines | Entered Exiles 5981 | -9/Exiles | Found Exiles lab destroyed 5981 | -9/Exiles | Accompanied by 3 allies 6870 | -9/Exiles | Discovered new exit (range 11) 6900 | -9/Exiles | Entered Mines 6900 | -8/Mines | Accompanied by 5 allies 6920 | -8/Mines | Discovered new exit (range 9) 6956 | -8/Mines | Entered Materials 6956 | -8/Materials | Accompanied by 5 allies 6956 | -8/Materials | Evolved 2 slots: Utility x2 7042 | -8/Materials | Identified exit to Storage 7118 | -8/Materials | Entered Storage 7118 | -8/Storage | Accompanied by 5 allies 7119 | -8/Storage | Identified exit to Recycling 7192 | -8/Storage | Garrison activated, responded to threat 7401 | -8/Storage | Discovered new exit (range 19) 8352 | -8/Storage | Identified exit to Garrison 8352 | -8/Storage | Entered Garrison 8362 | -8/Garrison | Installed Relay Interface Framework 8480 | -8/Garrison | Destroyed 7 combat bots 8500 | -8/Garrison | Triggered checkpoint 8901 | -8/Garrison | Garrison Relay disabled 8972 | -8/Garrison | Triggered checkpoint 8986 | -8/Garrison | Triggered checkpoint 9093 | -8/Garrison | Build established: Scavenger-Mutant 9339 | -8/Garrison | Discovered exit to Recycling (range 17) 9446 | -8/Garrison | Triggered checkpoint 9509 | -8/Garrison | Garrison Relay disabled 9638 | -8/Garrison | Discovered exit to Recycling (range 19) 9650 | -8/Garrison | Triggered checkpoint 9734 | -8/Garrison | Garrison Relay disabled 9870 | -8/Garrison | Triggered checkpoint 10047 | -8/Garrison | Discovered exit to Recycling (range 13) 10100 | -8/Garrison | Triggered checkpoint 10167 | -8/Garrison | Garrison Relay disabled 10880 | -8/Garrison | Triggered checkpoint 11604 | -8/Garrison | Build established: Hauler-Mutant 12298 | -8/Garrison | Entered Recycling 12362 | -8/Recycling | Spotter reported a threat 12386 | -8/Recycling | Spotter reported a threat 12464 | -8/Recycling | Spotter reported a threat 12487 | -8/Recycling | Spotter reported a threat 12492 | -8/Recycling | Spotter reported a threat 12495 | -8/Recycling | Spotter reported a threat 12517 | -8/Recycling | Spotter reported a threat 12526 | -8/Recycling | Spotter reported a threat 12540 | -8/Recycling | Spotter reported a threat 12570 | -8/Recycling | Spotter reported a threat 12577 | -8/Recycling | Spotter reported a threat 12579 | -8/Recycling | Spotter reported a threat 12579 | -8/Recycling | Discovered new exit (range 15) 12580 | -8/Recycling | Spotter reported a threat 12600 | -8/Recycling | Entered Factory 12600 | -6/Factory | Evolved 4 slots: Utility x4 12852 | -6/Factory | Identified exit to Lower Caves 12950 | -6/Factory | First assault squad dispatched 13048 | -6/Factory | Build established: Wizard-Mutant 13158 | -6/Factory | Core integrity fell below 50% 13178 | -6/Factory | Lost 4 parts (1p1u2w) 13242 | -6/Factory | Lost 3 parts (1n2w) 13290 | -6/Factory | Lost 4 parts (3u1w) 13511 | -6/Factory | Core integrity fell below 20% 13548 | -6/Factory | Lost 5 parts (2n3w) 13750 | -6/Factory | Destroyed by L-41 Fighter with Axe Last Messages --------------- 13671_ R-10 Processor inserts Targeting Computer into recycling unit. 13673_ K-01 Serf collects debris. 13699_ Detecting nearby Garrison Access. 13720_ Connecting with Garrison Access... >>Seal Access door sealed. 13735_ Acquired Plasma Cutter. 13736_ Slug penetrates Wall. 13741_ C-30 ARC bursts open, deploying its payload. 13741_ L-41 Fighter unfolds itself. 13741_ G-50 Soldier unfolds itself. 13742_ Penetrated by Slug. 13744_ Slug penetrates Wall. 13745_ Penetrated by Slug. 13745_ Cld. Ion Engine destroyed. 13747_ Slug penetrates G-50 Soldier. 13747_ Gauss Rifle destroyed. 13747_ Med. Storage Unit destroyed. 13748_ System corrupted: Component data lost. 13749_ Hacking Suite destroyed. Map ----- +----------------------------------------------------+ | ?????????????????????????????????????????????????? | | ?????????????????????????????????????????????????? | | ?????????????????????????????????????????????????? | | ?????????????????????????????????????????????????? | | ?????????????????????????????????????????????????? | | ?????????????????????????????????????????????????? | | ?????????????????????????????????????????????????? | | ?????????????????????????????????????????????????? | | ?????????????????????????????????????????????????? | | ?????????????????????????????????????????????????? | | ?????????????????????????????????????????????????? | | ?????????????????????????????????????????????????? | | ?????????????????????????????????????????????????? | | ?????????????????????????????????????????????????? | | ?????????????????????????????????????????????????? | | ??????????????? ?????????????????????????????????? | | ???????????????? ????????????????????????????????? | | ????????????????? ???????????????????????????????? | | ?????????????????# ??????????????????????????????? | | ?????????????????#h##########????????????????????? | | ?????????????????# gg #?????????????? ?????? | | ?????????????????#gg #?????????????? ?????? | | ?????????????????# h #?????????????? ?????? | | ?????????????????w #?????????????? #????? | | ?????????????????# !!! #?????????????# #????? | | ?????????????????# = !!@ #?????????????# #????? | | ?????????????????# !!l #????????????# #????? | | ?????????????????# ??????????# #????? | | ?????????????????# " " ???????# #????? | | ????????????###+## ""G"" gg ?????# #????? | | ?????? #####+#+#### ###### | | ?????? ^ % | | ?????? # ## | | ???????########+## # #### | | ?????????????????####### """ ##### | | ???????????????????????# """ + | | ???????????????????????# """ ###############+##### | | ???????????????????????# "" #???????????? ??? | | ???????????????????????# "" #?????????? ! = ? | | ???????????????????????# #????????# | | ???????????????????????#######????????# """ " "" | | ??????????????????????????????????????# """ "R"" | | ??????????????????????????????????????# """ """ | | ??????????????????????????????????????# | | ??????????????????????????????????????#?########## | | ????????????????????????????????????????# | | ???????????????????????????????????????##= | | ???????????????????????????????????????## """ | | ???????????????????????????############## """"" | | ???????????????????????????# # """"" | +----------------------------------------------------+ Best States ------------- Heat Dissipation 45 Energy Generation 14 Energy Capacity 280 Matter Stores 300 Matter Capacity 300 Sight Range 20 Robot Scan Range 16 Terrain Scan Density 10 Armor Coverage 450 Resistance: TH 10 Evasion (%) 49 Recoil Reduction 2 Offensive Hacking 30 Defensive Hacking 30 Item Schematics ----------------- None Robot Schematics ------------------ P-60 Hacker | -6/Factory | Hacked Fabricated ------------ Nothing Alien Tech Used ----------------- None Achievements -------------- None Challenges ------------ None Game ------ Seed ExplosiveGravitonNeutralizer Manual? 0 Play Time 01:39:53 Cumulative 149.6 hours Start 2020.06.24 @ 11:48:02 End 2020.06.24 @ 21:33:34 Sessions 7 Manual Loads 0 Difficulty Rogue Special Mode None Game No. 69 Rogue 69 Adventurer 0 Explorer 0 Win Type - Total 7 Types 6/0/0/1/0/0/0 Lore% 72 Gallery% 68 Achievement% 59 Wizard Run 0 Options --------- ASCII 1 Keyboard 0 Movement Numpad Keybinds 0 Fullscreen 1 Font 18/Cog Map View 76x50 Tactical HUD 1 Map Filters NONE Filters NONE Steam 1 RUN: c2691967-090f-4baf-9126-c682d487e806